bitfinex-derivatives/quotes_ETHF0:USTF0_20240905
["timestamp","ask_amount","ask_price","bid_price","bid_amount"]
[1725570067198,1.38726,2370.2,2370.1,0.42831553]
[1725570068011,1.38726,2370.2,2370.1,0.00633553]
[1725570072200,4.59506,2370.2,2370.1,0.00633553]
[1725570079921,4.59506,2370.2,2370.1,0.42831553]
[1725570080117,3.62976,2370.2,2370.1,0.42831553]
[1725570080317,3.62976,2370.2,2370.1,1.38551553]
[1725570080516,3.62976,2370.2,2370.1,0.96353553]
[1725570080915,3.62976,2370.2,2370.1,0.47613553]
[1725570081215,3.62976,2370.2,2370.1,0.00633553]
[1725570081415,4.68468,2370.2,2370.1,0.00633553]
[1725570083823,3.62976,2370.2,2370.1,0.00633553]
[1725570085019,3.2078,2370.5,2370.1,5.59553553]
[1725570085321,3.2078,2370.5,2370.4,1.79193]
[1725570088218,3.2078,2370.5,2370.4,6.01033]
[1725570088520,3.2078,2370.5,2370.4,0.42193]
[1725570088726,4.14491,2370.5,2370.4,1.37]
[1725570088918,3.723,2370.5,2370.4,1.79193]
[1725570089425,3.2078,2370.5,2370.4,1.79193]
[1725570092117,3.2078,2370.5,2370.4,6.01033]
[1725570092624,3.2078,2370.5,2370.4,13.06516]
[1725570094716,3.2078,2370.5,2370.4,10.64033]
[1725570095018,3.2078,2370.5,2370.4,6.01033]
[1725570095723,3.2078,2370.5,2370.4,12.01033]
[1725570096820,3.2078,2370.5,2370.4,6.01033]
[1725570097325,3.2078,2370.5,2370.4,12.01033]
[1725570098319,3.2078,2370.5,2370.4,13.06516]
[1725570098528,0.00633553,2370.6,2370.5,1.47669]
[1725570098720,0.00633553,2370.6,2370.5,6.19379]
[1725570098915,0.00633553,2370.6,2370.5,12.19379]
[1725570099126,0.00633553,2370.6,2370.5,5.13901]
[1725570100521,0.00633553,2370.6,2370.5,6.19379]
[1725570101020,0.00633553,2370.6,2370.5,12.19379]
[1725570102724,0.00633553,2370.6,2370.5,6.19379]
[1725570103619,0.00633553,2370.6,2370.5,12.19379]
[1725570103820,0.00633553,2370.6,2370.5,6.19379]
[1725570104631,0.00633553,2370.6,2370.5,6.52941744]
[1725570108130,0.00633553,2370.6,2370.5,12.52941744]
[1725570108930,0.00633553,2370.6,2370.5,6.52941744]
[1725570109133,0.00633553,2370.6,2370.5,12.52941744]
[1725570109434,0.00633553,2370.6,2370.5,13.58419744]
[1725570110630,0.00633553,2370.6,2370.5,7.89941744]
[1725570113334,0.5116,2370.8,2370.7,1.47656]
[1725570113534,0.5116,2370.8,2370.7,2.84656]
[1725570116138,3.71373553,2371.0,2370.9,0.42184]
[1725570116437,4.22293553,2371.0,2370.9,1.79184]
[1725570116927,3.72333553,2371.0,2370.9,1.79184]
[1725570120330,3.72333553,2371.0,2370.9,0.42184]
[1725570120530,3.72333553,2371.0,2370.9,1.79184]
[1725570121727,4.14515553,2371.0,2370.9,1.79184]
[1725570122129,3.72333553,2371.0,2370.9,1.79184]
[1725570122841,0.42182,2371.0,2370.9,1.79184]
[1725570123044,3.2078,2371.3,2370.9,1.79184]
[1725570123247,0.42182,2371.1,2370.9,1.79184]
[1725570123536,0.42182,2371.1,2370.9,1.37]
[1725570123742,0.42182,2371.0,2370.9,1.79183]
[1725570124532,4.2176,2371.0,2370.3,3.6957]
[1725570124733,1.05452,2371.1,2370.8,1.37]
[1725570125037,0.42184,2370.9,2370.8,1.37]
[1725570125237,0.42184,2370.9,2370.8,1.79186]
[1725570126144,1.85934,2370.9,2370.8,1.79186]
[1725570128741,1.98829346,2370.9,2370.8,1.79186]
[1725570129640,1.98829621,2370.9,2370.8,1.79186]
[1725570130545,1.85934,2370.9,2370.8,1.79186]
[1725570131541,1.98827406,2370.9,2370.8,1.79186]
[1725570132541,1.85934,2370.9,2370.8,1.79186]
[1725570132740,1.98829391,2370.9,2370.8,1.79186]
[1725570134657,1.98828432,2370.9,2370.8,1.79186]
[1725570135961,0.61074432,2370.9,2370.8,2.84651]
[1725570136146,0.4818,2370.9,2370.8,2.84651]
[1725570136345,0.4818,2370.9,2370.8,2.29916]
[1725570136545,0.61075143,2370.9,2370.8,2.29916]
[1725570138158,0.4818,2370.9,2370.8,2.29916]
[1725570138452,0.61072846,2370.9,2370.8,2.29916]
[1725570139250,0.4818,2370.9,2370.8,2.29916]
[1725570139549,3.71493553,2371.2,2371.0,0.42181]
[1725570139550,3.63593553,2371.2,2371.0,0.42181]
[1725570139754,4.13143553,2371.2,2371.0,1.79181]
[1725570140057,0.41023269,2371.1,2371.0,1.79181]
[1725570141150,0.83203269,2371.1,2371.0,1.79181]
[1725570141855,0.83203269,2371.1,2371.0,1.37]
[1725570142046,0.83203269,2371.1,2370.7,0.92637]
[1725570142047,1.05456,2371.0,2370.7,0.92637]
[1725570142247,0.42186,2370.8,2370.7,0.92637]
[1725570142449,0.12892809,2370.8,2370.7,0.92637]
[1725570142849,1.42145,2370.9,2370.7,0.92637]
[1725570143059,0.41030811,2370.8,2370.7,0.92637]
[1725570143456,0.1289571,2370.8,2370.7,0.92637]
[1725570144263,0.41031931,2370.8,2370.7,0.92637]
[1725570144749,0.41031931,2370.8,2370.7,2.29637]
[1725570145647,0.1289571,2370.8,2370.7,2.29637]
[1725570149869,0.42184,2370.9,2370.7,1.8745]
[1725570150164,0.42184,2370.9,2370.8,1.37]
[1725570150368,0.55072472,2370.9,2370.8,1.37]
[1725570150955,0.12888472,2370.9,2370.8,1.79184]
[1725570156773,0.42184,2371.0,2370.9,0.42184]
[1725570156972,4.11632,2371.1,2371.0,0.42182]
[1725570157285,4.11632,2371.1,2371.0,1.79182]
[1725570157481,4.10465117,2371.1,2371.0,2.76792]
[1725570159575,4.52645117,2371.1,2371.0,2.76792]
[1725570160980,4.2451879,2371.1,2371.0,2.76792]
[1725570161187,4.52640529,2371.1,2371.0,2.76792]
[1725570163587,1.31860529,2371.1,2371.0,2.76792]
[1725570165793,0.9085,2371.1,2371.0,2.76792]
[1725570165994,1.3186691,2371.1,2371.0,2.76792]
[1725570166190,1.3186691,2371.1,2371.0,2.3461]
[1725570166390,1.3186691,2371.1,2371.0,2.76792]
[1725570167888,1.3186691,2371.1,2371.0,2.29142]
[1725570168096,1.3186691,2371.1,2371.0,1.79182]
[1725570169292,1.3186691,2371.1,2371.0,1.37]
[1725570170291,0.9085,2371.1,2371.0,1.37]
[1725570170793,1.31850492,2371.1,2371.0,1.37]
[1725570171091,1.31850492,2371.1,2371.0,1.79182]
[1725570171798,1.31859894,2371.1,2371.0,1.79182]
[1725570173394,0.9085,2371.1,2371.0,1.37]
[1725570174091,1.31844212,2371.1,2371.0,1.37]
[1725570174392,1.31844212,2371.1,2371.0,1.79182]
[1725570175390,2.37296212,2371.1,2371.0,1.37]
[1725570175585,1.31844212,2371.1,2371.0,1.37]
[1725570176094,2.37296212,2371.1,2371.0,1.37]
[1725570177192,1.96302,2371.1,2371.0,1.37]
[1725570177394,2.37285908,2371.1,2371.0,1.37]
[1725570178492,2.37285908,2371.1,2370.9,1.37]
[1725570178493,1.47639,2371.0,2370.9,1.37]
[1725570178689,1.88622908,2371.0,2370.9,1.37]
[1725570179797,0.83165908,2371.0,2370.9,1.79184]
[1725570180202,0.83165908,2371.0,2370.9,1.37]
[1725570180498,0.83178383,2371.0,2370.9,1.79184]
[1725570181095,0.40996383,2371.0,2370.9,1.79184]
[1725570182591,0.12884523,2371.0,2370.9,1.79184]
[1725570182787,0.42181,2371.1,2370.9,1.79184]
[1725570182997,0.42181,2371.1,2371.0,1.8627]
[1725570183400,1.3184441,2371.1,2371.0,1.37]
[1725570184399,0.42186,2370.8,2370.7,0.5067]
[1725570184700,0.42186,2370.8,2370.3,4.5778]
[1725570184701,1.05483,2370.4,2370.3,4.5778]
[1725570184894,1.05483,2370.4,2370.1,1.10989044]
[1725570184895,0.42196,2370.2,2370.1,0.52933553]
[1725570185099,0.42196,2370.2,2370.1,0.00633553]
[1725570185100,1.8869141,2370.2,2370.1,0.00633553]
[1725570185397,7.0990141,2370.2,2370.1,1.37633553]
[1725570186090,6.97014932,2370.2,2370.1,1.37633553]
[1725570186292,7.09904067,2370.2,2370.1,1.37633553]
[1725570186500,7.09904067,2370.2,2370.1,0.00633553]
[1725570186699,7.09904067,2370.2,2369.5,0.5046]
[1725570186700,0.42207,2369.6,2369.5,0.5046]
[1725570186892,1.05509,2369.9,2368.9,0.42219]
[1725570186893,0.42212,2369.3,2368.9,0.42219]
[1725570187092,0.42212,2369.3,2369.2,1.37]
[1725570187598,0.42212,2369.4,2369.2,1.37]
[1725570187899,0.42212,2369.4,2369.3,1.37]
[1725570188195,0.42843553,2369.5,2369.3,1.37]
[1725570188703,0.42843553,2369.5,2369.1,3.62996]
[1725570188898,0.42843553,2369.5,2369.4,1.37]
[1725570189390,4.64843553,2369.5,2369.4,1.37]
[1725570192193,0.42842553,2369.5,2369.4,1.37]
[1725570194998,0.42842553,2369.5,2369.4,1.8604]
[1725570195596,0.00633553,2369.5,2369.4,2.28251]
[1725570195798,0.00633553,2369.5,2369.4,7.04978]
[1725570196207,0.00633553,2369.5,2369.4,5.99451]
[1725570196792,0.098,2370.0,2369.9,0.42202]
[1725570196992,0.42197,2370.2,2370.0,0.422]
[1725570197196,0.42197,2370.2,2370.1,1.37]
[1725570197801,1.55209,2370.5,2370.1,1.79197]
[1725570197802,0.00633553,2370.4,2370.1,1.79197]
[1725570198003,3.62975,2370.3,2370.2,3.28]
[1725570198801,3.62975,2370.3,2370.2,3.70196]
[1725570198802,3.2078,2370.3,2370.2,3.70196]
[1725570199002,3.62975,2370.3,2370.2,3.70196]
[1725570199402,3.62975,2370.3,2370.2,3.28]
[1725570199990,3.62975,2370.3,2370.2,3.7819]
[1725570200195,0.42195,2370.3,2370.2,3.7819]
[1725570200406,3.62975,2370.3,2370.2,3.7819]
[1725570201107,3.62975,2370.3,2370.2,4.2838]
[1725570201305,3.62975,2370.3,2370.2,4.70576]
[1725570201493,3.62975,2370.3,2370.2,4.2838]
[1725570202002,0.42195,2370.3,2370.2,4.2838]
[1725570202311,3.62975,2370.3,2370.2,4.70576]
[1725570203103,0.00633553,2370.4,2370.2,4.70576]
[1725570203406,0.42195,2370.3,2370.2,4.70575]
[1725570203707,0.42195,2370.3,2370.2,4.70576]
[1725570204311,0.42195,2370.3,2370.2,4.2838]
[1725570204499,0.42195,2370.3,2370.2,4.70576]
[1725570207106,0.42195,2370.3,2370.2,4.2838]
[1725570208107,0.42195,2370.3,2370.2,4.70576]
[1725570208304,0.42195,2370.3,2370.2,4.2838]
[1725570211912,0.90195,2370.3,2370.2,4.2838]
[1725570212112,0.42198,2370.1,2370.0,3.28]
[1725570213417,1.47694,2370.1,2370.0,3.28]
[1725570215117,0.422,2370.0,2369.9,0.9832]
[1725570215413,0.42211,2369.4,2369.3,3.28]
[1725570215615,0.42211,2369.4,2369.3,3.7603]
[1725570218017,0.42211,2369.4,2369.3,1.8503]
[1725570219914,0.4707,2369.7,2369.3,1.8503]
[1725570219915,0.4221,2369.5,2369.3,1.8503]
[1725570220123,0.4221,2369.5,2369.4,1.37]
[1725570220514,4.26292,2369.8,2369.4,1.37]
[1725570220515,3.2078,2369.8,2369.5,0.42208]
[1725570220825,3.62985,2369.8,2369.6,1.37]
[1725570221016,0.42205,2369.7,2369.6,1.8708]
[1725570221321,3.62985,2369.8,2369.6,1.8708]
[1725570221519,0.42205,2369.7,2369.6,1.8708]
[1725570222119,0.42205,2369.8,2369.6,1.8708]
[1725570222518,1.05502,2370.0,2369.6,1.8708]
[1725570222921,0.42205,2369.8,2369.6,1.8708]
[1725570223126,0.42205,2369.7,2369.6,1.8708]
[1725570224819,0.42205,2369.7,2369.6,2.29287]
[1725570226018,0.42205,2369.7,2369.6,1.8708]
[1725570226620,0.42205,2369.7,2369.6,2.29287]
[1725570226818,0.42205,2369.7,2369.6,0.5008]
[1725570227017,0.42205,2369.7,2369.6,1.8708]
[1725570228225,0.42205,2369.7,2369.6,1.37]
[1725570228426,0.92915,2369.7,2369.6,1.37]
[1725570230532,0.42205,2369.7,2369.6,1.37]
[1725570230721,0.42205,2369.7,2369.6,1.79207]
[1725570232720,0.42205,2369.8,2369.6,1.79207]
[1725570232920,0.42205,2369.8,2369.7,0.42205]
[1725570233130,0.42205,2369.8,2369.7,0.90665]
[1725570233932,0.42201,2370.0,2369.9,0.42201]
[1725570234731,0.9254,2370.1,2369.9,0.42201]
[1725570234934,0.9254,2370.1,2370.0,1.37]
[1725570235930,1.98036,2370.1,2370.0,1.37]
[1725570236127,0.42202,2370.0,2369.9,1.37]
[1725570238030,0.42202,2369.9,2369.8,1.8605]
[1725570239533,0.42202,2369.9,2369.8,0.4905]
[1725570239731,0.42205,2369.7,2369.6,1.37]
[1725570239932,1.47719,2369.7,2369.6,1.37]
[1725570240232,1.98859,2369.7,2369.6,1.37]
[1725570240721,1.98859,2369.7,2369.4,0.9729]
[1725570240722,0.42209,2369.5,2369.4,0.9729]
[1725570240922,1.47732,2369.5,2369.4,2.3429]
[1725570243238,0.42209,2369.5,2369.4,2.3429]
[1725570243439,1.47732,2369.5,2369.4,2.3429]
[1725570244236,0.42209,2369.5,2369.4,2.3429]
[1725570247139,0.42209,2369.5,2369.4,2.76501]
[1725570248530,0.93346,2369.7,2369.6,0.42207]
[1725570248831,0.93346,2369.7,2369.6,1.79207]
[1725570248832,0.42206,2369.7,2369.6,1.79207]
[1725570249232,4.73382,2370.2,2369.6,1.37]
[1725570249429,0.42198,2370.1,2370.0,1.37]
[1725570249645,0.42198,2370.1,2370.0,1.8699]
[1725570249840,0.42198,2370.1,2370.0,2.343]
[1725570250337,4.64118,2370.1,2370.0,2.343]
[1725570250937,4.64118,2370.1,2370.0,2.765]
[1725570250938,0.42198,2370.1,2370.0,2.765]
[1725570251137,0.42198,2370.1,2370.0,2.343]
[1725570251546,4.64118,2370.1,2370.0,2.343]
[1725570252232,0.42198,2370.1,2370.0,2.343]
[1725570253640,0.55086909,2370.1,2370.0,2.343]
[1725570254647,0.42198,2370.1,2370.0,2.343]
[1725570255041,0.55088204,2370.1,2370.0,2.765]
[1725570255740,0.55088204,2370.1,2370.0,2.343]
[1725570256550,0.55088204,2370.1,2370.0,2.765]
[1725570257246,0.55088204,2370.1,2370.0,2.343]
[1725570258353,0.55087481,2370.1,2370.0,2.343]
[1725570260553,0.55087481,2370.1,2370.0,2.765]
[1725570261449,0.55087481,2370.1,2370.0,2.343]
[1725570261851,0.55087481,2370.1,2370.0,2.765]
[1725570262051,0.55087167,2370.1,2370.0,2.765]
[1725570262252,0.55087167,2370.1,2370.0,2.343]
[1725570263247,0.83201915,2370.1,2370.0,2.343]
[1725570263446,0.55087167,2370.1,2370.0,2.343]
[1725570265350,0.83207777,2370.1,2370.0,2.343]
[1725570265850,0.55087167,2370.1,2370.0,2.343]
[1725570266354,0.83215951,2370.1,2370.0,2.343]
[1725570266857,0.55087167,2370.1,2370.0,2.343]
[1725570267044,0.83215615,2370.1,2370.0,2.343]
[1725570267352,0.55087167,2370.1,2370.0,2.343]
[1725570267654,0.83215303,2370.1,2370.0,2.343]
[1725570268049,0.83219819,2370.1,2370.0,2.343]
[1725570269954,0.83213828,2370.1,2370.0,2.343]
[1725570270256,0.55092988,2370.1,2370.0,2.343]
[1725570271656,0.42198,2370.1,2370.0,2.343]
[1725570271954,0.55089962,2370.1,2370.0,2.343]
[1725570272155,0.55089978,2370.1,2370.0,2.343]
[1725570274256,0.83211424,2370.1,2370.0,2.343]
[1725570278656,0.42198,2370.1,2370.0,2.765]
[1725570278954,0.42198,2370.1,2370.0,2.343]
[1725570279161,0.83258512,2370.1,2370.0,2.343]
[1725570281555,0.83258512,2370.1,2370.0,2.765]
[1725570281863,0.83257069,2370.1,2370.0,2.765]
[1725570283764,0.41059069,2370.1,2370.0,2.765]
[1725570283953,0.12906578,2370.1,2370.0,2.765]
[1725570284152,1.06118553,2370.4,2370.2,0.42196]
[1725570284153,0.42196,2370.3,2370.2,0.42196]
[1725570284453,0.00633553,2370.4,2370.2,0.42196]
[1725570284454,0.00633553,2370.4,2370.3,0.42195]
[1725570284660,0.00633553,2370.4,2370.3,1.79195]
[1725570284661,0.13534354,2370.4,2370.3,1.79195]
[1725570284965,0.00633553,2370.4,2370.3,1.79195]
[1725570288369,0.42826553,2370.4,2370.3,1.79195]
[1725570290169,0.55727134,2370.4,2370.3,1.79195]
[1725570290667,0.42826553,2370.4,2370.3,1.79195]
[1725570291566,0.55727317,2370.4,2370.3,1.79195]
[1725570291787,0.42826553,2370.4,2370.3,1.79195]
[1725570291976,0.55726821,2370.4,2370.3,1.79195]
[1725570292471,0.00633553,2370.4,2370.3,1.79195]
[1725570295473,0.42826553,2370.4,2370.3,1.79195]
[1725570295868,0.00633553,2370.4,2370.3,1.79195]
[1725570296469,0.42826553,2370.4,2370.3,1.79195]
[1725570303675,0.00633553,2370.4,2370.3,1.79195]
[1725570304570,1.48309553,2370.4,2370.3,1.37]
[1725570304885,1.47694,2370.1,2370.0,2.343]
[1725570306179,0.42198,2370.1,2370.0,2.765]
[1725570307283,0.42198,2370.1,2370.0,2.343]
[1725570307976,0.42198,2370.1,2370.0,2.765]
[1725570311881,0.42198,2370.2,2370.1,0.42198]
[1725570312081,0.42198,2370.2,2370.1,2.32188]
[1725570312384,0.00633553,2370.4,2370.1,1.8999]
[1725570312590,0.00633553,2370.4,2370.3,1.79195]
[1725570313086,0.00633553,2370.4,2370.3,2.24205]
[1725570314290,0.00633553,2370.4,2370.3,6.50472]
[1725570316793,0.00633553,2370.4,2370.3,10.72312]
[1725570318092,0.00633553,2370.4,2370.3,16.72312]
[1725570319088,0.00633553,2370.4,2370.3,10.72312]
[1725570321397,0.00633553,2370.4,2370.3,16.72312]
[1725570321698,0.00633553,2370.4,2370.3,10.72312]
[1725570322199,0.00633553,2370.4,2370.3,16.72312]
[1725570324796,0.00633553,2370.4,2370.3,10.72312]
[1725570327304,0.00633553,2370.4,2370.3,17.77799]
[1725570329502,0.00633553,2370.4,2370.3,11.77799]
[1725570335506,0.00633553,2370.4,2370.3,8.57019]
[1725570335706,0.00633553,2370.4,2370.3,11.77799]
[1725570349514,0.00633553,2370.4,2370.3,7.55959]
[1725570349719,0.00633553,2370.4,2370.3,3.2078]
[1725570350015,0.42198,2370.1,2369.9,0.42201]
[1725570350215,0.9605,2370.0,2369.9,0.42201]
[1725570351010,0.9605,2370.0,2369.9,1.79201]
[1725570353309,0.4581,2370.3,2369.9,1.79201]
[1725570353310,0.4581,2370.3,2370.2,0.42196]
[1725570353516,1.3798,2370.3,2370.2,0.42196]
[1725570354119,0.4706,2370.3,2370.2,0.42196]
[1725570354315,0.4706,2370.3,2370.2,2.39148]
[1725570354715,0.4706,2370.3,2370.2,1.33656]
[1725570359217,0.4706,2370.3,2370.2,4.54436]
[1725570363529,0.00633553,2370.4,2370.3,0.42195]
[1725570363828,0.00633553,2370.4,2370.3,1.79195]
[1725570364124,0.00633553,2370.4,2370.3,2.84682]
[1725570364534,0.00633553,2370.4,2370.3,8.16877491]
[1725570364724,0.098,2370.8,2370.7,0.42187]
[1725570365028,0.86173,2371.0,2370.7,0.42187]
[1725570365227,0.57433018,2370.9,2370.8,1.37]
[1725570368227,0.99617018,2370.9,2370.8,1.37]
[1725570368427,0.99617018,2370.9,2370.6,4.11761553]
[1725570368732,0.86724,2370.9,2370.7,1.79187]
[1725570369124,0.4454,2370.9,2370.7,1.79187]
[1725570370431,0.4454,2370.9,2370.7,1.79186]
[1725570373038,0.86724,2370.9,2370.7,1.79186]
[1725570375931,0.86724,2370.9,2370.8,0.42186]
[1725570376330,0.86724,2370.9,2370.7,1.79186]
[1725570381133,0.42186,2370.8,2370.7,1.79186]
[1725570381734,0.86725,2370.9,2370.8,0.42186]
[1725570381935,0.99605182,2370.9,2370.8,0.42186]
[1725570382532,0.99605182,2370.9,2370.7,1.79186]
[1725570382731,0.86725,2370.9,2370.7,1.79186]
[1725570383437,0.42186,2370.8,2370.7,1.79186]
[1725570387544,1.47656,2370.7,2370.6,0.00633553]
[1725570387739,6.15896,2370.7,2370.6,0.00633553]
[1725570388840,6.28770905,2370.7,2370.6,0.00633553]
[1725570391044,6.15896,2370.7,2370.6,0.00633553]
[1725570391543,6.28770366,2370.7,2370.6,0.00633553]
[1725570393840,6.28771414,2370.7,2370.6,0.00633553]
[1725570397146,5.82371414,2370.7,2370.6,0.00633553]
[1725570398152,5.69496,2370.7,2370.6,0.00633553]
[1725570398650,5.82371775,2370.7,2370.6,0.00633553]
[1725570404251,6.10448786,2370.7,2370.6,0.00633553]
[1725570404853,5.69496,2370.7,2370.6,0.00633553]
[1725570405254,6.10442194,2370.7,2370.6,0.00633553]
[1725570408253,5.69496,2370.7,2370.6,0.00633553]
[1725570408857,6.10453897,2370.7,2370.6,0.00633553]
[1725570411763,6.1044255,2370.7,2370.6,0.00633553]
[1725570412758,1.8860255,2370.7,2370.6,0.00633553]
[1725570416666,1.88603206,2370.7,2370.6,0.00633553]
[1725570418260,0.00417574,2371.1,2370.6,10.22473553]
[1725570418561,0.00417574,2371.1,2371.0,1.79182]
[1725570418755,0.00417574,2371.1,2371.0,2.24162]
[1725570419062,0.00417574,2371.1,2371.0,6.92262]
[1725570420862,0.42597574,2371.1,2371.0,2.2832]
[1725570421257,0.42597574,2371.1,2371.0,0.9132]
[1725570421258,1.60859253,2371.1,2371.0,0.9132]
[1725570421463,1.60859253,2371.1,2370.7,3.2078]
[1725570421464,0.42184,2370.9,2370.8,1.8299]
[1725570421766,0.42184,2370.9,2370.8,2.7585]
[1725570423863,0.42184,2370.9,2370.8,3.18036]
[1725570424365,0.42183,2371.0,2370.8,3.18036]
[1725570428072,0.42183,2371.0,2370.9,0.42184]
[1725570428369,0.42183,2371.0,2370.8,3.18034]
[1725570428768,0.87669574,2371.1,2370.9,0.42183]
[1725570428970,0.87669574,2371.1,2371.0,1.37]
[1725570429166,1.00476584,2371.1,2371.0,1.37]
[1725570429367,5.22236584,2371.1,2371.0,1.37]
[1725570433869,5.09429574,2371.1,2371.0,1.37]
[1725570434580,5.22237549,2371.1,2371.0,1.79182]
[1725570435272,1.00477549,2371.1,2371.0,1.79182]
[1725570435474,0.42599574,2371.1,2371.0,1.79182]
[1725570435676,0.55407522,2371.1,2371.0,1.79182]
[1725570436181,0.13225522,2371.1,2371.0,1.79182]
[1725570436372,0.55405522,2371.1,2371.0,1.79182]
[1725570436779,0.42597574,2371.1,2371.0,1.79182]
[1725570440780,0.42597574,2371.1,2371.0,1.37]
[1725570440987,0.42182,2371.0,2370.9,0.42183]
[1725570441178,1.79582,2371.0,2370.9,0.42183]
[1725570441373,1.92399039,2371.0,2370.9,0.42183]
[1725570441974,1.92398092,2371.0,2370.9,0.42183]
[1725570442376,1.79582,2371.0,2370.9,0.42183]
[1725570442877,1.79582,2371.0,2370.8,1.8488]
[1725570442878,1.79582,2371.0,2370.8,2.27064]
[1725570443085,0.42184,2370.9,2370.8,2.27064]
[1725570443783,0.42184,2370.9,2370.8,2.27065]
[1725570443988,1.374,2371.0,2370.8,2.27065]
[1725570443989,1.79583,2371.0,2370.9,0.42184]
[1725570444284,0.42184,2370.9,2370.8,2.27064]
[1725570444672,7.4254,2370.9,2370.6,0.00633553]
[1725570444872,3.90125,2370.7,2370.6,0.00633553]
[1725570445076,3.90125,2370.7,2370.1,0.098]
[1725570445077,0.42196,2370.2,2370.1,0.098]
[1725570445382,1.05486,2370.4,2370.0,0.4438]
[1725570445383,0.42198,2370.1,2370.0,0.4438]
[1725570445680,0.42198,2370.1,2370.0,1.8138]
[1725570445885,0.42197,2370.2,2370.0,1.8138]
[1725570447283,0.4523,2370.1,2370.0,1.8138]
[1725570450091,0.87428,2370.1,2370.0,1.8138]
[1725570454184,0.42198,2370.2,2370.0,1.8138]
[1725570455184,0.42198,2370.1,2370.0,1.8138]
[1725570458692,0.42198,2370.1,2370.0,6.033]
[1725570459686,0.42198,2370.1,2370.0,1.8138]
[1725570460681,0.4768,2370.3,2370.0,1.8138]
[1725570460884,0.098,2370.7,2370.2,1.37]
[1725570460885,1.15273,2370.7,2370.2,1.37]
[1725570461085,1.15273,2370.7,2370.1,3.2078]
[1725570461086,0.42192,2370.5,2370.4,1.37]
[1725570463998,0.42192,2370.5,2370.3,0.9195]
[1725570463999,0.42193,2370.4,2370.3,2.2895]
[1725570475901,0.42193,2370.4,2370.3,2.7377]
[1725570482406,0.42193,2370.4,2370.3,1.37]
[1725570482603,0.85683,2370.4,2370.3,1.37]
[1725570483303,0.85683,2370.4,2370.3,1.8244]
[1725570483304,0.42193,2370.4,2370.3,1.8244]
[1725570484301,0.42193,2370.4,2370.3,2.24635]
[1725570484804,0.42193,2370.4,2370.3,0.4544]
[1725570485003,0.42195,2370.3,2370.2,1.79196]
[1725570485203,0.86335,2370.3,2370.2,1.79196]
[1725570485803,1.47688,2370.2,2370.1,0.4591]
[1725570486007,1.47688,2370.2,2370.0,0.9214]
[1725570486008,0.42198,2370.1,2370.0,2.2914]
[1725570487115,0.42198,2370.1,2370.0,2.7134]
[1725570489514,0.42195,2370.3,2370.1,0.42197]
[1725570489813,0.42195,2370.3,2370.2,1.845]
[1725570490020,0.5501403,2370.3,2370.2,1.845]
[1725570495320,0.5501403,2370.3,2370.2,2.26696]
[1725570495525,0.42192,2370.5,2370.3,0.42194]
[1725570495715,0.42192,2370.5,2370.4,1.37]
[1725570495916,0.42195,2370.3,2370.2,1.845]
[1725570496123,0.55012968,2370.3,2370.2,1.845]
[1725570496323,1.02102968,2370.3,2370.2,1.845]
[1725570498227,0.59907968,2370.3,2370.0,4.55119]
[1725570498433,1.44425968,2370.2,2370.1,0.42198]
[1725570498824,1.44425968,2370.2,2370.0,5.92119]
[1725570499024,1.44425968,2370.2,2370.1,0.42198]
[1725570499322,1.31608,2370.2,2370.1,0.42198]
[1725570499523,1.44425209,2370.2,2370.1,0.42198]
[1725570500023,0.99895209,2370.2,2370.1,0.42198]
[1725570500327,0.42198,2370.2,2370.1,0.42198]
[1725570500633,0.55015601,2370.2,2370.1,0.42198]
[1725570500927,0.42198,2370.1,2370.0,5.92119]
[1725570501936,0.42198,2370.2,2370.1,0.42198]
[1725570502140,0.55013531,2370.1,2370.0,5.92119]
[1725570502847,0.42198,2370.1,2370.0,5.92119]
[1725570503028,0.42198,2370.1,2370.0,2.71339]
[1725570503232,0.42197,2370.2,2370.1,0.42198]
[1725570503439,0.55007602,2370.2,2370.1,0.42198]
[1725570506244,0.42197,2370.2,2370.1,0.42198]
[1725570506439,0.55008192,2370.2,2370.1,0.42198]
[1725570506949,0.42196,2370.3,2370.2,0.42196]
[1725570507136,0.55005757,2370.3,2370.0,2.2914]
[1725570507444,0.55006301,2370.2,2370.1,0.42197]
[1725570507644,0.12810301,2370.2,2370.1,1.79197]
[1725570508844,0.12810301,2370.2,2370.1,6.01117]
[1725570509041,0.42196,2370.3,2370.1,6.01117]
[1725570509238,0.12804973,2370.2,2370.1,1.79197]
[1725570510348,0.42196,2370.3,2370.2,0.42196]
[1725570510851,0.67799632,2370.3,2370.2,0.42196]
[1725570511654,0.54997805,2370.3,2370.2,0.42196]
[1725570511840,0.12801805,2370.3,2370.2,4.64116]
[1725570512040,0.89701,2370.5,2370.1,2.42496]
[1725570512041,0.89701,2370.5,2370.3,0.42193]
[1725570512344,0.12797123,2370.4,2370.3,1.79193]
[1725570513149,0.89701,2370.5,2370.4,0.42193]
[1725570513755,1.02496305,2370.5,2370.4,0.42193]
[1725570516555,1.02497182,2370.5,2370.4,0.42193]
[1725570519752,1.02498249,2370.5,2370.4,0.42193]
[1725570519954,0.89701,2370.5,2370.4,0.42193]
[1725570520350,1.02498296,2370.5,2370.4,0.42193]
[1725570528371,0.89701,2370.5,2370.4,0.42193]
[1725570528570,1.02500443,2370.5,2370.4,0.42193]
[1725570530170,0.89701,2370.5,2370.4,0.42193]
[1725570530764,1.02500342,2370.5,2370.4,0.42193]
[1725570537061,1.0249966,2370.5,2370.4,0.42193]
[1725570540676,1.0249966,2370.5,2370.2,0.4699]
[1725570540677,0.42195,2370.3,2370.2,0.4699]
[1725570541183,0.5499366,2370.3,2370.2,0.4699]